Cogmind - Beta 14 @@@ ROGUE MODE // 2024.10.22 @ 00:21:27 Player: WazdakkaGutsmek Result: Destroyed by 8R-3PZ(R) with Subdweller Beam Cannon Performance ------------- Evolutions (0) 0 Regions Visited (3) 600 Robots Destroyed (22) 110 Value Destroyed (440) 440 Prototype IDs (1) 20 Alien Tech Used (0) 0 Bonus (0) 0 TOTAL SCORE: 1170 Bonus ------- None Cogmind --------- Core Integrity 0/250 Matter 266/300 Energy 249/250 System Corruption 0% Temperature Cool (9) Movement Treading (160) Location -10/Subcaves Parts ------- > --- POWER (1+3) ------ Ion Engine > --- PROPULSION (2) --- Light Treads > --- UTILITY (2) ------ Small Storage Unit Power Bank > --- WEAPON (2) ------- Battle Rifle > --- INVENTORY (8) ---- Wheel Compact Wheel Improved Heat Sink Hacking Suite Makeshift Axe Peak State ------------ > --- POWER ------------ Ion Engine > --- PROPULSION ------- Light Treads > --- UTILITY ---------- Small Storage Unit Power Bank > --- WEAPON ----------- Beamcaster Beam Cannon > --- INVENTORY -------- Ion Engine Light Treads Wheel Compact Wheel Hacking Suite Battle Rifle Makeshift Axe [Rating: 19] Favorites ----------- Power Ion Engine Engine Ion Engine Propulsion Light Treads Treads Light Treads Leg Aluminum Leg Utility Small Storage Unit Device Terrain Scanner Storage Small Storage Unit Weapon Beam Cannon Energy Gun Medium Laser Energy Cannon Beam Cannon Ballistic Gun Light Assault Rifle Build | -11 -10 -10 -10 ------- Run | Yrd Mat Min Sub Slots Evolved . | . . . . Power . | . . . . Propulsion . | . . . . Utility . | . . . . Weapon . | . . . . Parts Attached 9 | . 3 1 5 Power 1 | . . . 1 Engine 1 | . . . 1 Core . | . . . . Reactor . | . . . . Propulsion 3 | . 2 . 1 Treads 3 | . 2 . 1 Leg . | . . . . Wheel . | . . . . Hover . | . . . . Flight . | . . . . Utility 2 | . 1 . 1 Device 2 | . 1 . 1 Storage . | . . . . Processor . | . . . . Hackware . | . . . . Protection . | . . . . Artifact . | . . . . Weapon 3 | . . 1 2 Energy Gun 1 | . . . 1 Energy Cannon 1 | . . 1 . Ballistic Gun 1 | . . . 1 Ballistic Cannon . | . . . . Launcher . | . . . . Special Weapon . | . . . . Impact Weapon . | . . . . Slashing Weapon . | . . . . Piercing Weapon . | . . . . Special Melee Weapon . | . . . . Unidentified Prototypes 1 | . . . 1 Parts Lost 6 | . . . 6 Power 1 | . . . 1 Propulsion 2 | . . . 2 Utility 1 | . . . 1 Weapon 2 | . . . 2 Highest Loss Streak 2 | . . . 2 To Critical Strikes . | . . . . Average Slot Usage (%) 80 | . 88 100 61 Engine 12 | . 14 14 10 Treads 18 | . 18 28 11 Leg 2 | . 10 . . Device 9 | . 3 14 9 Storage 12 | . 14 14 10 Energy Gun 12 | . 14 14 10 Energy Cannon 9 | . . 14 10 Ballistic Gun 3 | . 14 . . Peak Build Rating 19 | . 8 8 19 Average Rating 11 | . 6 8 17 On Entrance 7 | 6 6 8 8 Naked Turns . | . . . . Heaviest Build 21 | 13 14 16 21 Greatest Support 40 | 20 40 40 40 Greatest Overweight (x) 6 | . . . 6 Average Overweight (x) . | . . . 1 Largest Inventory Capacity 8 | . 8 8 8 Average Capacity 8 | . 8 8 8 Most Carried 8 | . 8 8 8 Average Carried 7 | . 6 8 7 Final Capacity 8 | 8 8 8 8 Final Carried 8 | 6 8 8 5 Class Distribution -------------------- 100% | Mutant Dominant Class ---------------- Mutant | -10/Materials Mutant | -10/Mines Mutant | -10/Subcaves Resources | -11 -10 -10 -10 ----------- Run | Yrd Mat Min Sub Matter Collected 305 | 152 113 10 30 Remotely . | . . . . Salvage Created 608 | . 268 34 306 Parts 50 | . 34 4 12 Haulers Intercepted 1 | . 1 . . Recyclers Shooed . | . . . . Parts Field Recycled . | . . . . Retrieved Matter . | . . . . Parts Self-Destructed 9 | . . . 9 Prevented . | . . . . Kills | -11 -10 -10 -10 ------- Run | Yrd Mat Min Sub Combat Hostiles Destroyed 17 | . 7 3 7 Guns 12 | . 7 1 4 Cannons 5 | . . 2 3 Classes Destroyed 7 | . 6 . 1 Builder 2 | . 2 . . Tunneler 1 | . 1 . . Hauler 1 | . 1 . . Operator 1 | . 1 . . Swarmer 9 | . 6 3 . Grunt 3 | . 1 . 2 Subdweller 5 | . . . 5 Best Kill Streak 3 | . 3 3 3 Combat Bots Only 3 | . 3 3 3 Max Kills in Single Turn 2 | . 2 1 1 Gunslinging 1 | . 1 . . Exploded . | . . . . Melee . | . . . . Uniques/NPCs Destroyed . | . . . . Combat | -11 -10 -10 -10 -------- Run | Yrd Mat Min Sub Hostile Shots Fired 96 | . 28 10 58 Missed 34 | . 9 6 19 Damage Taken 1089 | . 161 33 895 Core 264 | . 14 7 243 Absorbed by Shields . | . . . . Core Remaining (%) 100 | 100 . . . Volleys Fired 76 | . 35 4 37 Largest 2 | . 2 2 2 Hottest 135 | . 70 110 135 Shots Fired 144 | . 70 8 66 Gun 110 | . 70 4 36 Cannon 34 | . . 4 30 Launcher . | . . . . Special . | . . . . Kinetic 43 | . 35 . 8 Thermal 101 | . 35 8 58 Explosive . | . . . . Electromagnetic . | . . . . Robot Hit Streak 11 | . 6 4 11 Robot Miss Streak 6 | . 6 3 1 Penetration Max . | . . . . Secondary Targets 1 | . 1 . . Max Gunslinging Chain 1 | . 1 . . Shots Hit Robots 93 | . 35 4 54 Core Hits 34 | . 17 4 13 Critical Kills . | . . . . Critical Parts Destroyed . | . . . . Critical Strikes 1 | . 1 . . Burn 1 | . 1 . . Melee Attacks . | . . . . Impact . | . . . . Slashing . | . . . . Piercing . | . . . . Sneak Attacks . | . . . . Combat Hostiles . | . . . . Follow-up Attacks . | . . . . Damage Inflicted 1370 | . 415 91 864 Guns 897 | . 415 38 444 Cannons 471 | . . 51 420 Explosions . | . . . . Melee . | . . . . Ramming 2 | . . 2 . Kinetic 220 | . 142 . 78 Thermal 1148 | . 273 89 786 Explosive . | . . . . Electromagnetic . | . . . . Impact . | . . . . Slashing . | . . . . Piercing . | . . . . Highest Corruption . | . . . . Average Corruption . | . . . . Corruption Purged . | . . . . Corruption Blocked . | . . . . Overload Shots . | . . . . Overflow Damage . | . . . . Projectiles . | . . . . Explosions . | . . . . Melee . | . . . . Knockbacks . | . . . . Impact . | . . . . Kinetic . | . . . . Secondary . | . . . . Self-Inflicted Damage . | . . . . Shots . | . . . . Rammed 1 | . . 1 . Targets Rammed 1 | . . 1 . Kicked . | . . . . Crushed . | . . . . Highest Temperature 192 | . 160 192 152 Average Temperature 53 | . 55 97 34 Received Heat Transfer 294 | . 12 . 282 Siege Activations . | . . . . Robots Corrupted . | . . . . Combat Hostiles . | . . . . Parts Fried . | . . . . Impact Corruptions . | . . . . Robots Melted . | . . . . Combat Hostiles . | . . . . Parts Melted 7 | . . . 7 Heat Transferred 2849 | . 888 222 1739 Parts Sabotaged . | . . . . Parts Stolen . | . . . . Parts Stripped . | . . . . Power Chain Reactions . | . . . . Alert | -11 -10 -10 -10 ------- Run | Yrd Mat Min Sub Peak Influence 232 | . 232 82 . Initial 12 | . . 12 . Average 79 | . 117 52 . Maximum Alert Level 1 | . 1 . . Low Security (%) 90 | . 77 100 . Level 1 9 | . 22 . . Level 2 . | . . . . Level 3 . | . . . . Level 4 . | . . . . Level 5 . | . . . . High Security . | . . . . Max Security . | . . . . Squads Dispatched 2 | . 1 1 . Investigation . | . . . . Extermination . | . . . . Reinforcement 1 | . 1 . . Assault 1 | . . 1 . Garrison . | . . . . Intercept . | . . . . Searches Triggered . | . . . . Construction Impeded . | . . . . Haulers Reinforced . | . . . . Active Scanning Responses . | . . . . Cargo Convoy Interrupts . | . . . . Stealth | -11 -10 -10 -10 --------- Run | Yrd Mat Min Sub Distress Signals 3 | . 3 . . Communications Jammed . | . . . . Distress Signals . | . . . . Times Spotted 25 | . 14 3 8 Peak Tracking Total 5 | . 5 3 3 Tactical Retreats 1 | . 1 . . Traps | -11 -10 -10 -10 ------- Run | Yrd Mat Min Sub Traps Triggered . | . . . . Indirectly . | . . . . Trap Hack Attempts . | . . . . Triggered . | . . . . Disarmed . | . . . . Reprogrammed . | . . . . Reused . | . . . . Traps Extracted . | . . . . Installed . | . . . . Triggered . | . . . . Machines | -11 -10 -10 -10 ---------- Run | Yrd Mat Min Sub Machines Disabled . | . . . . Max in Single Turn . | . . . . Machines Repaired . | . . . . Machines Dismantled . | . . . . Machines Sabotaged . | . . . . Overloaded Fab Kills . | . . . . Hacking | -11 -10 -10 -10 --------- Run | Yrd Mat Min Sub Machines Accessed 1 | . 1 . . Terminals 1 | . 1 . . Fabricators . | . . . . Repair Stations . | . . . . Recycling Units . | . . . . Scanalyzers . | . . . . Garrison Access . | . . . . Total Hacks 3 | . 3 . . Successful 2 | . 2 . . Failed 1 | . 1 . . Catastrophic . | . . . . Database Lockouts . | . . . . Manual 3 | . 3 . . Terminals 3 | . 3 . . Fabricators . | . . . . Repair Stations . | . . . . Recycling Units . | . . . . Scanalyzers . | . . . . Garrison Access . | . . . . Terminal Hacks . | . . . . Fabricator Hacks . | . . . . Repair Station Hacks . | . . . . Recycling Unit Hacks . | . . . . Scanalyzer . | . . . . Garrison Access Hacks . | . . . . Unauthorized Hacks 2 | . 2 . . Terminals 2 | . 2 . . Botnet 1 | . 1 . . Skim 1 | . 1 . . Fabricators . | . . . . Repair Stations . | . . . . Recycling Units . | . . . . Scanalyzers . | . . . . Garrison Access . | . . . . Data Cores Recovered . | . . . . Used . | . . . . Hacking Detections 1 | . 1 . . Full Trace Events . | . . . . Feedback Events . | . . . . Feedback Blocked . | . . . . Robot Schematics Acquired . | . . . . Robots Built . | . . . . Authchips . | . . . . Time . | . . . . Total Robot Build Rating . | . . . . Part Schematics Acquired . | . . . . Parts Built . | . . . . Authchips . | . . . . Time . | . . . . Total Part Build Rating . | . . . . Parts Repaired . | . . . . Time . | . . . . Parts Recycled . | . . . . Recycled Matter . | . . . . Retrieved Matter . | . . . . Retrieved Components . | . . . . Parts Scanalyzed . | . . . . Part Schematics Acquired . | . . . . Parts Damaged . | . . . . Bothacking | -11 -10 -10 -10 ------------ Run | Yrd Mat Min Sub Used RIF Installer . | . . . . Robots Hacked . | . . . . Non-combat . | . . . . Combat . | . . . . Robot Hacks Applied . | . . . . Relay Couplers Released . | . . . . Fabnet Peak Effective % . | . . . . Robots Rewired . | . . . . Allies Hacked . | . . . . Hacks Repelled . | . . . . Allies | -11 -10 -10 -10 -------- Run | Yrd Mat Min Sub Total Allies 1 | . . 1 . Largest Group 1 | . . 1 1 Highest-Rated Group 31 | . . 31 31 Highest-Rated Ally 31 | . . 31 31 Total Orders . | . . . . Ally Attacks 11 | . . . 11 Total Damage 146 | . . . 146 Kills . | . . . . Allies Corrupted . | . . . . Allies Melted . | . . . . Intel | -11 -10 -10 -10 ------- Run | Yrd Mat Min Sub Robot Analysis Total . | . . . . Derelict Logs Recovered 2 | . . 1 1 Drone Launches . | . . . . Drone Recoveries . | . . . . Exploration | -11 -10 -10 -10 ------------- Run | Yrd Mat Min Sub Turns Passed 1800 | . 419 612 769 Spaces Moved 829 | 1 185 365 278 Core 5 | . . . 5 Treads 732 | . 94 365 273 Legs 92 | 1 91 . . Wheels . | . . . . Hover . | . . . . Flight . | . . . . Fastest Speed 120 | 120 120 160 160 Average Speed 181 | 120 140 160 235 Slowest Speed 350 | 120 160 160 350 Overloaded Moves . | . . . . Propulsion Burnouts . | . . . . Robots Hopped . | . . . . Cave-ins Triggered . | . . . . Exploration Rate (%) 36 | 2 37 84 23 Regions Visited 3 Branch Regions 2 Pre-discovered Areas . | . . . . Known Exits Taken . | . . . . Unknown Exits Taken 3 | 1 1 1 . Scrap Searched 3 | . . 1 2 Spaces Dug . | . . . . Terrain Destroyed . | . . . . Melee . | . . . . Projectile . | . . . . AOE . | . . . . Terrain Rammed . | . . . . Walls Destroyed . | . . . . Machines Disabled . | . . . . Actions | -11 -10 -10 -10 --------- Run | Yrd Mat Min Sub Total 997 | . 282 386 329 Wait 73 | . 55 14 4 Move 826 | . 184 364 278 Hop . | . . . . Pick Up 6 | . 3 1 2 Fast Attach 3 | . 2 . 1 Attach 4 | . 1 . 3 Detach . | . . . . Swap 2 | . . 1 1 Drop 6 | . 2 1 3 Fire 76 | . 35 4 37 Melee . | . . . . Ram . | . . . . Kick . | . . . . Crush 1 | . . 1 . Escape Stasis . | . . . . Rewire . | . . . . Trap . | . . . . Miscellaneous . | . . . . Route ------- -11/Scrapyard -10/Materials -10/Mines (discovered 4 exits: [*Mat x2] / [*Exi] / [*Sub]) -10/Subcaves (discovered 1 exit: [*Mat]) History --------- Turn | Location | Event 1 | -11/Scrapyard | Discovered new exit (range 0) 1 | -11/Scrapyard | Entered Materials 307 | -10/Materials | Build established: Mutant 394 | -10/Materials | Discovered new exit (range 6) 420 | -10/Materials | Entered Mines 474 | -10/Mines | Learned 2 Materials zone layouts 487 | -10/Mines | A weapon hastily lodged in a ceiling crevice suddenly fell to the ground 544 | -10/Mines | Discovered new exit (range 13) 651 | -10/Mines | Deemed a non-threat by the Exiles lab entrance 651 | -10/Mines | Discovered new exit (range 5) 714 | -10/Mines | Discovered new exit (range 5) 959 | -10/Mines | Met a Derelict testing a Signal Generator 1024 | -10/Mines | Discovered new exit (range 5) 1032 | -10/Mines | Entered Subcaves 1032 | -10/Subcaves | Accompanied by 1 ally 1032 | -10/Subcaves | Discovered new exit (range 8) 1042 | -10/Subcaves | A Subdweller sparked back to life 1042 | -10/Subcaves | A Subdweller sparked back to life 1109 | -10/Subcaves | Found Prototype Device 1109 | -10/Subcaves | Identified Power Bank 1110 | -10/Subcaves | Attached Power Bank, gained temporary slots: Power x3 1188 | -10/Subcaves | Learned Materials security intel 1201 | -10/Subcaves | Disturbed a concealed Subdweller 1690 | -10/Subcaves | Core integrity fell below 50% 1783 | -10/Subcaves | Ambushed by Subdweller buried in earth 1787 | -10/Subcaves | Core integrity fell below 20% 1801 | -10/Subcaves | Destroyed by 8R-3PZ(R) with Subdweller Beam Cannon Last Messages --------------- Twisted Machinery. 01202_ Ion Engine destroyed. 01208_ PM-O59(R) affixes Scrap Shield Fragment to Scrap Shield. 01211_ Sub. Laser melted. 01211_ Sub. Optics melted. 01211_ PM-O59(R) destroyed. 01220_ Acquired 10 matter. 01689_ G-34 Mercenary destroyed. 01696_ Aluminum Leg fries itself beyond repair. 01696_ Heat Sink fries itself beyond repair. 01705_ Lgt. Treads destroyed. 01705_ Critical hit (Burn: +37). 01706_ Lgt. Nuclear Core melted. 01706_ G-47 Trooper destroyed. 01720_ Aluminum Leg fries itself beyond repair. 01781_ Beamcaster destroyed. 01784_ 8R-3PZ(R): "ARGHSUB!" 01787_ Beam Cannon destroyed. 01797_ HH-VQ2(R) destroyed. Map ----- +----------------------------------------------------+ | | | | | | | | | ?????????????????????????????????????????????????? | | ?????????????????????????????????????????????????? | | ?????????????????????????????????????????????????? | | ?????????????????????????????????????????????????? | | ?????????????????????????????????????????????????? | | ?????????????????????????????????????????????????? | | ?????????????????????????????????????????????????? | | ?????????????????????????????????????????????????? | | ?????????????????????????????????????????????????? | | ?????????????????????????????????????????????????? | | ?????????????????????????????????????????????????? | | ?????????????????????????????????????????????????? | | ?????????????????????????????????????????????????? | | ???????????????########??????????????????????????? | | ??????????????## ;;;;;;####??????????????????????? | | ?????????###?## ####?????##????????????? | | ???????### ## # ##??? #????????????? | | ?????? ;; #?? " ????????????? | | ??????# ## """????????????? | | ???????# !#&!"""????????????? | | ????????# =&%"""""????????????? | | ?????????# @ &*&"#??????????????? | | ?????????# " ##??????????????? | | ?????????# R ""#???????????????? | | ???????????# ;; #""#???????????????? | | ???????????### ; ####???????????????? | | ?????????????# ## "#??????????????????? | | ??????????#### ;;;;;#?## #??????????????????? | | ????##????# ## ###? #??????????????????? | | ????# ###?# % ### ##??????????????????? | | ????# ### % ## #???????????????????? | | ????# ## ### ???????????????????? | | ???## #? #???????????????????? | | ??## #######?# ???????????????????? | | ??# ##### #???????? ???????????????????? | | ??# #???# ##??########???????????????????? | | ??# #??## #??# ####???????????????????? | | ??## #?# #??# #???????????????????? | | ???###### #?# #### #???????????????????? | | ????????# #?## #?????????????????????? | | ???????? #??## ##?????????????????????? | | ???????? #???##### ##??????????????????????? | | ????????# ???????## #???????????????????????? | | ????????# ????#### ######??????????????????? | | ???????? #???# ## ###????????????????? | | ???????? #???# #?????????????##?? | +----------------------------------------------------+ Best States ------------- Heat Dissipation 25 Energy Generation 10 Energy Capacity 250 Matter Stores 300 Matter Capacity 300 Sight Range 16 Terrain Scan Range 14 Terrain Scan Density 10 Evasion (%) 55 Recoil Reduction 2 Item Schematics ----------------- None Robot Schematics ------------------ None Fabricated ------------ Nothing Alien Tech Used ----------------- None Achievements -------------- None Challenges ------------ None Game ------ Seed FortressCoilRefractor Manual? 0 Play Time 00:14:00 Cumulative 59.1 hours Start 2024.10.22 @ 00:15:15 End 2024.10.22 @ 00:21:27 Sessions 1 Manual Loads 0 Difficulty Rogue Special Mode None Game No. 58 Rogue 40 Adventurer 16 Explorer 2 Win Type - Total 1 Types 1/0/0/0/0/0/0/0/0 Lore% 13 Gallery% 43 Achievement% 37 Wizard Run 0 Options --------- Layout 2 ASCII 0 Keyboard 0 Movement Mouse Keybinds 1 Fullscreen 2 Font 24/Terminus Map View 50x44 Zoom Use 0% Tactical HUD 1 Map Filters NONE Filters NONE Steam X RUN: dbeba498-4970-4ff2-a455-b7f573d3777f